Cogmind - Beta 13 @@@ ROGUE MODE // 2024.04.14 @ 20:16:04 Player: Thaleia Result: Self-destructed Performance ------------- Evolutions (1) 500 Regions Visited (2) 400 Robots Destroyed (11) 55 Value Destroyed (252) 252 Prototype IDs (0) 0 Alien Tech Used (0) 0 Bonus (0) 0 TOTAL SCORE: 1207 Bonus ------- None Cogmind --------- Core Integrity 276/400 Matter 20/300 Energy 125/125 System Corruption 0% Temperature Cool (0) Movement Treading (160) Location -9/Materials Parts ------- > --- POWER (1) -------- Light Ion Engine > --- PROPULSION (3) --- Light Treads Light Treads Light Treads > --- UTILITY (3) ------ Large Storage Unit Sensor Array Signal Interpreter > --- WEAPON (2) ------- Autogun > --- INVENTORY (15) --- Light Nuclear Core Light Treads Light Treads High-capacity Storage Unit Large Matter Pod (0) Visual Processing Unit Mini Grenade Launcher Mini Grenade Launcher Welding Torch Peak State ------------ > --- POWER ------------ Ion Engine > --- PROPULSION ------- Light Treads Light Treads Light Treads > --- UTILITY ---------- Large Storage Unit Sensor Array Signal Interpreter > --- WEAPON ----------- Light Assault Rifle Mini Grenade Launcher > --- INVENTORY -------- Light Ion Engine Light Nuclear Core Light Treads Light Treads High-capacity Storage Unit Large Matter Pod Visual Processing Unit Medium Laser Mini Grenade Launcher Welding Torch [Rating: 11] Favorites ----------- Power Ion Engine Engine Ion Engine Propulsion Light Treads Treads Light Treads Leg Aluminum Leg Utility Sensor Array Device Sensor Array Storage Large Storage Unit Processor Signal Interpreter Weapon Light Assault Rifle Energy Gun Medium Laser Ballistic Gun Light Assault Rifle Launcher Mini Grenade Launcher Special Weapon Welding Torch Build | -11 -10 -9 ------- Run | Yrd Mat Mat Slots Evolved 2 | . . 2 Power . | . . . Propulsion 1 | . . 1 Utility 1 | . . 1 Weapon . | . . . Parts Attached 26 | 6 13 7 Power 3 | 1 1 1 Engine 3 | 1 1 1 Core . | . . . Reactor . | . . . Propulsion 6 | 2 2 2 Treads 4 | . 2 2 Leg 2 | 2 . . Wheel . | . . . Hover . | . . . Flight . | . . . Utility 7 | 1 5 1 Device 2 | . 2 . Storage 4 | 1 3 . Processor 1 | . . 1 Hackware . | . . . Protection . | . . . Artifact . | . . . Weapon 10 | 2 5 3 Energy Gun 3 | 1 1 1 Energy Cannon . | . . . Ballistic Gun 4 | 1 1 2 Ballistic Cannon . | . . . Launcher 2 | . 2 . Special Weapon 1 | . 1 . Impact Weapon . | . . . Slashing Weapon . | . . . Piercing Weapon . | . . . Special Melee Weapon . | . . . Unidentified Prototypes . | . . . Parts Lost 2 | . . 2 Power 1 | . . 1 Propulsion . | . . . Utility . | . . . Weapon 1 | . . 1 Highest Loss Streak 2 | . . 2 To Critical Strikes . | . . . Average Slot Usage (%) 98 | . 99 94 Engine 13 | . 14 10 Treads 25 | . 24 33 Leg 3 | . 3 . Device 13 | . 13 11 Storage 13 | . 14 11 Processor 1 | . . 11 Energy Gun 10 | . 12 1 Ballistic Gun 14 | . 14 15 Naked Turns . | . . . Heaviest Build 49 | 13 49 31 Greatest Support 60 | 20 46 60 Greatest Overweight (x) 1 | . 1 . Average Overweight (x) . | . . . Largest Inventory Capacity 20 | 8 20 15 Average Capacity 11 | 7 12 15 Most Carried 12 | 4 12 11 Average Carried 8 | 2 9 9 Final Capacity 15 | 8 15 15 Final Carried 12 | 3 12 9 Class Distribution -------------------- 100% | Mutant Dominant Class ---------------- Mutant | -10/Materials Mutant | -9/Materials Resources | -11 -10 -9 ----------- Run | Yrd Mat Mat Matter Collected 346 | 180 127 39 Remotely . | . . . Salvage Created 231 | 21 171 39 Parts 20 | 3 12 5 Haulers Intercepted . | . . . Recyclers Shooed . | . . . Parts Field Recycled . | . . . Retrieved Matter . | . . . Parts Self-Destructed . | . . . Prevented . | . . . Kills | -11 -10 -9 ------- Run | Yrd Mat Mat Combat Hostiles Destroyed 8 | . 4 4 Melee 1 | . . 1 Guns 4 | . 1 3 AOE 3 | . 3 . Classes Destroyed 4 | 1 2 1 Worker 1 | 1 . . Watcher 2 | . 2 . Swarmer 4 | . . 4 Grunt 4 | . 4 . Best Kill Streak 2 | 1 2 2 Combat Bots Only 2 | . 2 2 Max Kills in Single Turn 1 | 1 1 1 Gunslinging . | . . . Exploded 1 | . 1 . Melee 1 | . . 1 Uniques/NPCs Destroyed . | . . . Combat | -11 -10 -9 -------- Run | Yrd Mat Mat Hostile Shots Fired 115 | . 26 89 Missed 21 | . 6 15 Damage Taken 839 | . 240 599 Core 136 | . 12 124 Absorbed by Shields . | . . . Core Remaining (%) 97 | 100 95 . Volleys Fired 49 | 3 17 29 Largest 2 | 2 2 2 Hottest 80 | 70 80 43 Shots Fired 80 | 6 26 48 Gun 70 | 6 16 48 Cannon . | . . . Launcher 5 | . 5 . Special 5 | . 5 . Kinetic 58 | 3 7 48 Thermal 17 | 3 14 . Explosive 5 | . 5 . Electromagnetic . | . . . Robot Hit Streak 4 | 1 4 3 Robot Miss Streak 6 | 2 3 6 Penetration Max . | . . . Secondary Targets . | . . . Shots Hit Robots 20 | 1 9 10 Core Hits 13 | 1 9 3 Critical Kills . | . . . Critical Parts Destroyed . | . . . Critical Strikes 1 | . 1 . Burn 1 | . 1 . Melee Attacks . | . . . Impact . | . . . Slashing . | . . . Piercing . | . . . Sneak Attacks . | . . . Combat Hostiles . | . . . Follow-up Attacks . | . . . Damage Inflicted 499 | 15 339 145 Guns 227 | 12 76 139 Cannons . | . . . Explosions 263 | . 263 . Melee . | . . . Ramming 9 | 3 . 6 Kinetic 154 | . 15 139 Thermal 73 | 12 61 . Explosive 263 | . 263 . Electromagnetic . | . . . Impact . | . . . Slashing . | . . . Piercing . | . . . Highest Corruption . | . . . Average Corruption . | . . . Corruption Purged . | . . . Corruption Blocked . | . . . Overload Shots . | . . . Overflow Damage . | . . . Projectiles . | . . . Explosions . | . . . Melee . | . . . Knockbacks . | . . . Impact . | . . . Kinetic . | . . . Secondary . | . . . Self-Inflicted Damage . | . . . Shots . | . . . Rammed 2 | . . 2 Targets Rammed 5 | 2 . 3 Kicked 2 | 2 . . Crushed 1 | . . 1 Highest Temperature 103 | 40 103 . Average Temperature 39 | 19 45 . Received Heat Transfer 141 | . 135 6 Siege Activations . | . . . Robots Corrupted . | . . . Combat Hostiles . | . . . Parts Fried . | . . . Impact Corruptions . | . . . Robots Melted . | . . . Combat Hostiles . | . . . Parts Melted . | . . . Heat Transferred 296 | 37 259 . Parts Sabotaged . | . . . Parts Stolen . | . . . Parts Stripped . | . . . Power Chain Reactions . | . . . Alert | -11 -10 -9 ------- Run | Yrd Mat Mat Peak Influence 131 | 5 105 131 Initial 30 | . 3 30 Average 35 | . 33 76 Maximum Alert Level . | . . . Low Security (%) 100 | 100 100 100 Level 1 . | . . . Level 2 . | . . . Level 3 . | . . . Level 4 . | . . . Level 5 . | . . . High Security . | . . . Max Security . | . . . Squads Dispatched 2 | . 1 1 Investigation 1 | . 1 . Extermination . | . . . Reinforcement 1 | . . 1 Assault . | . . . Garrison . | . . . Intercept . | . . . Searches Triggered . | . . . Construction Impeded . | . . . Haulers Reinforced . | . . . Active Scanning Responses . | . . . Cargo Convoy Interrupts . | . . . Stealth | -11 -10 -9 --------- Run | Yrd Mat Mat Distress Signals 1 | . 1 . Communications Jammed . | . . . Distress Signals . | . . . Times Spotted 14 | . 6 8 Peak Tracking Total 4 | . 3 4 Tactical Retreats . | . . . Traps | -11 -10 -9 ------- Run | Yrd Mat Mat Traps Triggered 1 | . 1 . Indirectly . | . . . Trap Hack Attempts . | . . . Triggered . | . . . Disarmed . | . . . Reprogrammed . | . . . Reused . | . . . Traps Extracted . | . . . Installed . | . . . Triggered . | . . . Machines | -11 -10 -9 ---------- Run | Yrd Mat Mat Machines Disabled 3 | . 2 1 Max in Single Turn 1 | . 1 1 Machines Repaired . | . . . Machines Dismantled . | . . . Machines Sabotaged . | . . . Overloaded Fab Kills . | . . . Hacking | -11 -10 -9 --------- Run | Yrd Mat Mat Machines Accessed 1 | . 1 . Terminals 1 | . 1 . Fabricators . | . . . Repair Stations . | . . . Recycling Units . | . . . Scanalyzers . | . . . Garrison Access . | . . . Total Hacks 3 | . 3 . Successful 1 | . 1 . Failed 2 | . 2 . Catastrophic 1 | . 1 . Database Lockouts . | . . . Manual . | . . . Terminals 3 | . 3 . Fabricators . | . . . Repair Stations . | . . . Recycling Units . | . . . Scanalyzers . | . . . Garrison Access . | . . . Terminal Hacks 1 | . 1 . Locate Traps 1 | . 1 . Fabricator Hacks . | . . . Repair Station Hacks . | . . . Recycling Unit Hacks . | . . . Scanalyzer . | . . . Garrison Access Hacks . | . . . Unauthorized Hacks . | . . . Terminals . | . . . Fabricators . | . . . Repair Stations . | . . . Recycling Units . | . . . Scanalyzers . | . . . Garrison Access . | . . . Data Cores Recovered . | . . . Used . | . . . Hacking Detections 1 | . 1 . Full Trace Events . | . . . Feedback Events . | . . . Feedback Blocked . | . . . Robot Schematics Acquired . | . . . Robots Built . | . . . Authchips . | . . . Time . | . . . Total Robot Build Rating . | . . . Part Schematics Acquired . | . . . Parts Built . | . . . Authchips . | . . . Time . | . . . Total Part Build Rating . | . . . Parts Repaired . | . . . Time . | . . . Parts Recycled . | . . . Recycled Matter . | . . . Retrieved Matter . | . . . Retrieved Components . | . . . Parts Scanalyzed . | . . . Part Schematics Acquired . | . . . Parts Damaged . | . . . Bothacking | -11 -10 -9 ------------ Run | Yrd Mat Mat Used RIF Installer . | . . . Robots Hacked . | . . . Non-combat . | . . . Combat . | . . . Robot Hacks Applied . | . . . Relay Couplers Released . | . . . Fabnet Peak Effective % . | . . . Robots Rewired . | . . . Allies Hacked . | . . . Hacks Repelled . | . . . Allies | -11 -10 -9 -------- Run | Yrd Mat Mat Total Allies . | . . . Largest Group . | . . . Highest-Rated Group . | . . . Highest-Rated Ally . | . . . Total Orders . | . . . Ally Attacks . | . . . Total Damage . | . . . Kills . | . . . Allies Corrupted . | . . . Allies Melted . | . . . Intel | -11 -10 -9 ------- Run | Yrd Mat Mat Robot Analysis Total . | . . . Derelict Logs Recovered . | . . . Drone Launches . | . . . Drone Recoveries . | . . . Exploration | -11 -10 -9 ------------- Run | Yrd Mat Mat Turns Passed 1541 | 217 1095 229 Spaces Moved 908 | 167 649 92 Core 11 | 11 . . Treads 644 | . 552 92 Legs 253 | 156 97 . Wheels . | . . . Hover . | . . . Flight . | . . . Fastest Speed 50 | 50 120 160 Average Speed 147 | 115 154 160 Slowest Speed 240 | 120 240 160 Overloaded Moves . | . . . Propulsion Burnouts . | . . . Robots Hopped . | . . . Cave-ins Triggered . | . . . Exploration Rate (%) 18 | 6 41 7 Regions Visited 2 Branch Regions . Pre-discovered Areas . | . . . Known Exits Taken . | . . . Unknown Exits Taken 2 | 1 1 . Scrap Searched . | . . . Spaces Dug . | . . . Terrain Destroyed 32 | . 32 . Melee . | . . . Projectile . | . . . AOE 32 | . 32 . Terrain Rammed . | . . . Walls Destroyed . | . . . Machines Disabled . | . . . Actions | -11 -10 -9 --------- Run | Yrd Mat Mat Total 1032 | 183 717 132 Wait 14 | . 14 . Move 906 | 166 648 92 Hop . | . . . Pick Up 23 | 5 18 . Fast Attach 6 | 5 1 . Attach 8 | 1 4 3 Detach . | . . . Swap 12 | . 8 4 Drop 9 | 1 7 1 Fire 49 | 3 17 29 Melee . | . . . Ram . | . . . Kick 2 | 2 . . Crush 3 | . . 3 Escape Stasis . | . . . Rewire . | . . . Trap . | . . . Miscellaneous . | . . . Route ------- -11/Scrapyard -10/Materials -9/Materials History --------- Turn | Location | Event 2 | -11/Scrapyard | Met Revision 17 25 | -11/Scrapyard | Discovered new exit (range 15) 218 | -11/Scrapyard | Entered Materials 307 | -10/Materials | Build established: Mutant 618 | -10/Materials | Discovered new exit (range 16) 1313 | -10/Materials | Entered another Materials area 1313 | -9/Materials | Evolved 2 slots: Propulsion x1, Utility x1 1542 | -9/Materials | Self-destructed Last Messages --------------- 01462_ K-01 Serf collects debris. 01462_ Acquired 14 matter. 01466_ K-01 Serf collects debris. 01472_ Slammed into S-10 Pest. 01473_ Acquired 15 matter. 01473_ Slammed into S-10 Pest. 01475_ Crushed S-10 Pest. 01475_ S-10 Pest destroyed. 01480_ Acquired 10 matter. 01497_ O-16 Technician: "IFF HANDSHAKE FAILED. SECURING TERMINAL." 01501_ O-16 Technician uses terminal to summon reinforcements. 01501_ ALERT: Hostiles spotted, dispatching reinforcements to Terminal M009. 01501_ O-16 Technician locks terminal. 01519_ C-30 ARC bursts open, deploying its payload. 01519_ L-31 Rogue unfolds itself. 01519_ G-34 Mercenary unfolds itself. Map ----- +----------------------------------------------------+ | ?????????????????? ??????????? | | ?????????????????# #?????????? | | ?????????????????# #?????????? | | ?????????????????# " #?????????? | | ????????????????? "%"#?????????? | | ?????????????????# " #?????????? | | ?????????????????# #?????????? | | ????????????????## ##????????? | | ????????######+## #????????? | | ????????? #????????? | | ??????????? T +????????? | | ?????????????? #????????? | | ????????????????# #????????? | | ??????????########x ########??? | | ??????????# # # #??? | | ??????????# """" + / #??? | | ??????????# """" # #= "" #??? | | ??????????# """" # # " #??? | | ??????????? # # = #??? | | ??????????+ # # #??? | | ??????????######## x ###;####### | | ??????############ #?# ## # | | ????? ## ### ## # | | ??????????# g + # | | ??????????# l # # | | ??????????# @# x # | | ??????????# ######### ###### | | ??????????## ##########+##???? | | ???????????# # [ #???? | | ???????????# + #???? | | ???????????# # #???? | | ???????????# # """ """ #???? | | ???????????##### """ """ #???? | | ???????????????# """ """ #???? | | ???????????????# #???? | | ???????????????#############???? | | ???????????????????????????????? | | | | | | | | | | | | | | | | | | | | | | | | | | | +----------------------------------------------------+ Best States ------------- Heat Dissipation 28 Energy Generation 10 Energy Capacity 250 Matter Stores 267 Matter Capacity 300 Sight Range 16 Robot Scan Range 14 Terrain Scan Density 10 Additional Mass Support 6 Evasion (%) 55 Recoil Reduction 3 Item Schematics ----------------- None Robot Schematics ------------------ None Fabricated ------------ Nothing Alien Tech Used ----------------- None Achievements -------------- Oops Challenges ------------ None Game ------ Seed EtherialCannonExpander Manual? 0 Play Time 00:18:09 Cumulative 4.3 hours Start 2024.04.14 @ 19:54:21 End 2024.04.14 @ 20:16:04 Sessions 1 Manual Loads 0 Difficulty Rogue Special Mode None Game No. 9 Rogue 9 Adventurer 0 Explorer 0 Win Type - Total 0 Types 0/0/0/0/0/0/0/0/0 Lore% 7 Gallery% 7 Achievement% 10 Wizard Run 0 Options --------- Layout 1 ASCII 0 Keyboard 1 Movement Arrows Keybinds 0 Fullscreen 1 Font 32/Tamsyn Map View 50x40 Zoom Use 0% Tactical HUD 1 Map Filters NONE Filters NONE Steam 0 RUN: 775e6617-caa1-4273-93c2-8f6ffc00c1df